[Event "Early-Titled-Tuesday-Blitz-October-03-2023"]
[Site "Chess.com"]
[Date "2023.10.03"]
[Round "11"]
[White "MAGMAchess02"]
[Black "a-z30"]
[Result "0-1"]
[WhiteElo "2368"]
[BlackElo "2505"]
[TimeControl "180+1"]
[EndTime "10:06:34 PDT"]
[Termination "a-z30 won on time"]

1. e4 {[%clk 0:03:00.9]} 1... Nf6 {[%clk 0:03:00.9]} 2. e5 {[%clk 0:03:00.2]}
2... Nd5 {[%clk 0:03:01]} 3. d4 {[%clk 0:03:00.7]} 3... d6 {[%clk 0:03:01.1]} 4.
c4 {[%clk 0:03:00.5]} 4... Nb6 {[%clk 0:03:01]} 5. exd6 {[%clk 0:03:01.1]} 5...
exd6 {[%clk 0:03:00.4]} 6. Nf3 {[%clk 0:02:59.6]} 6... Nc6 {[%clk 0:03:00.5]} 7.
Nc3 {[%clk 0:02:59.7]} 7... Be7 {[%clk 0:03:00.8]} 8. Be3 {[%clk 0:02:59.2]}
8... O-O {[%clk 0:03:00.9]} 9. h3 {[%clk 0:02:56.7]} 9... Bf5 {[%clk 0:03:00.5]}
10. Be2 {[%clk 0:02:54.3]} 10... d5 {[%clk 0:03:00.2]} 11. c5 {[%clk 0:02:51.5]}
11... Nc4 {[%clk 0:03:00.1]} 12. O-O {[%clk 0:02:27.3]} 12... Nxe3 {[%clk
0:02:15.3]} 13. fxe3 {[%clk 0:02:28.2]} 13... Bf6 {[%clk 0:02:08.9]} 14. Bd3
{[%clk 0:02:08.2]} 14... Bxd3 {[%clk 0:02:01.1]} 15. Qxd3 {[%clk 0:02:09.1]}
15... Re8 {[%clk 0:02:00.8]} 16. Nh2 {[%clk 0:01:55.2]} 16... g6 {[%clk
0:01:58.5]} 17. Rf3 {[%clk 0:01:47.3]} 17... Bg7 {[%clk 0:01:57.6]} 18. Raf1
{[%clk 0:01:34.7]} 18... Re7 {[%clk 0:01:57.1]} 19. a3 {[%clk 0:00:54.6]} 19...
Qd7 {[%clk 0:01:56]} 20. b4 {[%clk 0:00:45.6]} 20... Rae8 {[%clk 0:01:55.2]} 21.
Nd1 {[%clk 0:00:38.1]} 21... a6 {[%clk 0:01:49.2]} 22. g4 {[%clk 0:00:34.4]}
22... Bh6 {[%clk 0:01:45.6]} 23. Kg2 {[%clk 0:00:27.2]} 23... Re4 {[%clk
0:01:21.8]} 24. Rg3 {[%clk 0:00:20.1]} 24... Qe7 {[%clk 0:01:13.9]} 25. Rgf3
{[%clk 0:00:10.1]} 25... Bxe3 {[%clk 0:01:10.1]} 26. Rxf7 {[%clk 0:00:03.6]}
26... Qxf7 {[%clk 0:01:10.2]} 27. Rxf7 {[%clk 0:00:04.2]} 27... Kxf7 {[%clk
0:01:10.9]} 28. Nf3 {[%clk 0:00:03]} 28... Bf4 {[%clk 0:01:08.9]} 29. Nf2 {[%clk
0:00:02.9]} 29... Re3 {[%clk 0:01:01.3]} 0-1

[Event "Early-Titled-Tuesday-Blitz-October-03-2023"]
[Site "Chess.com"]
[Date "2023.10.03"]
[Round "11"]
[White "pankajfm"]
[Black "MajorCoast"]
[Result "1-0"]
[WhiteElo "2122"]
[BlackElo "2245"]
[TimeControl "180+1"]
[EndTime "10:06:36 PDT"]
[Termination "pankajfm won by checkmate"]

1. e4 {[%clk 0:02:57.8]} 1... c5 {[%clk 0:02:59.7]} 2. Nc3 {[%clk 0:02:56.7]}
2... e6 {[%clk 0:02:59.4]} 3. g3 {[%clk 0:02:56]} 3... d5 {[%clk 0:02:59.5]} 4.
Bg2 {[%clk 0:02:55.7]} 4... Nf6 {[%clk 0:02:58.2]} 5. exd5 {[%clk 0:02:55.4]}
5... exd5 {[%clk 0:02:57.4]} 6. Qe2+ {[%clk 0:02:52.9]} 6... Be6 {[%clk
0:02:54.6]} 7. d3 {[%clk 0:02:51.2]} 7... Nc6 {[%clk 0:02:52.1]} 8. Bg5 {[%clk
0:02:50.6]} 8... Nd4 {[%clk 0:02:45.8]} 9. Qd1 {[%clk 0:02:48.1]} 9... Bg4
{[%clk 0:02:40]} 10. Bxf6 {[%clk 0:02:10.8]} 10... Qxf6 {[%clk 0:02:12.8]} 11.
Qxg4 {[%clk 0:02:10.4]} 11... Nxc2+ {[%clk 0:02:12.9]} 12. Kd2 {[%clk
0:02:11.1]} 12... Qxf2+ {[%clk 0:02:06.9]} 13. Qe2+ {[%clk 0:02:11.8]} 13...
Qxe2+ {[%clk 0:02:05.9]} 14. Ngxe2 {[%clk 0:02:12.7]} 14... Nxa1 {[%clk
0:02:06.5]} 15. Nxd5 {[%clk 0:02:13.3]} 15... O-O-O {[%clk 0:01:56.5]} 16. Rxa1
{[%clk 0:02:12.2]} 16... g6 {[%clk 0:01:52.5]} 17. Nf6 {[%clk 0:02:09.3]} 17...
Bg7 {[%clk 0:01:42.6]} 18. Rf1 {[%clk 0:02:09.2]} 18... c4 {[%clk 0:01:36.6]}
19. d4 {[%clk 0:02:07.3]} 19... Rd6 {[%clk 0:01:13.2]} 20. Ne4 {[%clk
0:02:06.3]} 20... Rb6 {[%clk 0:00:50.2]} 21. Kc3 {[%clk 0:02:06]} 21... f5
{[%clk 0:00:48]} 22. Nd2 {[%clk 0:01:52.5]} 22... Re8 {[%clk 0:00:46.9]} 23. Nf4
{[%clk 0:01:48.8]} 23... Re3+ {[%clk 0:00:42.3]} 24. Kc2 {[%clk 0:01:47.1]}
24... Bxd4 {[%clk 0:00:38.9]} 25. Nxc4 {[%clk 0:01:47.2]} 25... g5 {[%clk
0:00:18.6]} 26. Nxe3 {[%clk 0:01:42.7]} 26... Rxb2+ {[%clk 0:00:13.3]} 27. Kc1
{[%clk 0:01:39.8]} 27... gxf4 {[%clk 0:00:13.7]} 28. Nxf5 {[%clk 0:01:39.7]}
28... Rxg2 {[%clk 0:00:13.4]} 29. Nxd4 {[%clk 0:01:39.6]} 29... fxg3 {[%clk
0:00:13.7]} 30. hxg3 {[%clk 0:01:40.1]} 30... Rxg3 {[%clk 0:00:14]} 31. Rh1
{[%clk 0:01:40]} 31... Rd3 {[%clk 0:00:13]} 32. Nc2 {[%clk 0:01:37.9]} 32... Kc7
{[%clk 0:00:13.1]} 33. Rxh7+ {[%clk 0:01:37.3]} 33... Kb6 {[%clk 0:00:13.3]} 34.
Rh6+ {[%clk 0:01:36.6]} 34... Kc7 {[%clk 0:00:13.3]} 35. Rh7+ {[%clk 0:01:35.9]}
35... Kb6 {[%clk 0:00:13.5]} 36. Kb2 {[%clk 0:01:36.8]} 36... Rg3 {[%clk
0:00:12.8]} 37. a3 {[%clk 0:01:36.9]} 37... a6 {[%clk 0:00:12]} 38. Nb4 {[%clk
0:01:35.5]} 38... Rg2+ {[%clk 0:00:11.1]} 39. Kb3 {[%clk 0:01:36]} 39... Rg3+
{[%clk 0:00:11.7]} 40. Ka4 {[%clk 0:01:36.6]} 40... Kc5 {[%clk 0:00:11.1]} 41.
Rxb7 {[%clk 0:01:35.2]} 41... Rg6 {[%clk 0:00:10.3]} 42. Rc7+ {[%clk 0:01:34.3]}
42... Kb6 {[%clk 0:00:09.9]} 43. Nd5# {[%clk 0:01:34.2]} 1-0

[Event "Early-Titled-Tuesday-Blitz-October-03-2023"]
[Site "Chess.com"]
[Date "2023.10.03"]
[Round "11"]
[White "Better_Chess_Faster"]
[Black "GMJustin"]
[Result "1-0"]
[WhiteElo "2073"]
[BlackElo "2197"]
[TimeControl "180+1"]
[EndTime "10:06:44 PDT"]
[Termination "Better_Chess_Faster won on time"]

1. e4 {[%clk 0:03:00.9]} 1... c5 {[%clk 0:02:51.1]} 2. Nf3 {[%clk 0:02:57.7]}
2... Nc6 {[%clk 0:02:50.2]} 3. d4 {[%clk 0:02:57.8]} 3... cxd4 {[%clk
0:02:49.4]} 4. Nxd4 {[%clk 0:02:58.7]} 4... Nf6 {[%clk 0:02:47.8]} 5. Nc3 {[%clk
0:02:57.6]} 5... d6 {[%clk 0:02:45]} 6. Bg5 {[%clk 0:02:55.9]} 6... e6 {[%clk
0:02:43.4]} 7. Qd2 {[%clk 0:02:55.3]} 7... a6 {[%clk 0:02:41.9]} 8. O-O-O {[%clk
0:02:54.6]} 8... Be7 {[%clk 0:02:35.2]} 9. f4 {[%clk 0:02:53.2]} 9... Bd7 {[%clk
0:02:31.6]} 10. e5 {[%clk 0:02:47.3]} 10... dxe5 {[%clk 0:02:24.3]} 11. Nxc6
{[%clk 0:02:45]} 11... Bxc6 {[%clk 0:02:23.2]} 12. Qxd8+ {[%clk 0:02:43.9]}
12... Rxd8 {[%clk 0:02:08.6]} 13. Rxd8+ {[%clk 0:02:42.8]} 13... Bxd8 {[%clk
0:01:50.1]} 14. fxe5 {[%clk 0:02:43]} 14... Ng4 {[%clk 0:01:49.4]} 15. Bf4
{[%clk 0:02:31.2]} 15... Bc7 {[%clk 0:01:45.1]} 16. Be2 {[%clk 0:02:27.8]} 16...
Bxe5 {[%clk 0:01:39.9]} 17. Bd2 {[%clk 0:02:16.4]} 17... Nxh2 {[%clk 0:01:22.2]}
18. Re1 {[%clk 0:01:43.3]} 18... Bg3 {[%clk 0:01:03.1]} 19. Rd1 {[%clk
0:01:42.7]} 19... h5 {[%clk 0:00:55.6]} 20. Be3 {[%clk 0:01:32.1]} 20... Bc7
{[%clk 0:00:33]} 21. b4 {[%clk 0:01:28.1]} 21... Ng4 {[%clk 0:00:28]} 22. Bc5
{[%clk 0:01:22.6]} 22... Bxg2 {[%clk 0:00:25]} 23. b5 {[%clk 0:01:21.2]} 23...
axb5 {[%clk 0:00:11.6]} 24. Nxb5 {[%clk 0:01:20.6]} 24... Bf4+ {[%clk
0:00:11.4]} 25. Kb1 {[%clk 0:01:18.8]} 25... f6 {[%clk 0:00:11.3]} 26. Nd6+
{[%clk 0:01:14.8]} 26... Bxd6 {[%clk 0:00:09.9]} 27. Rxd6 {[%clk 0:01:10.4]}
27... Kf7 {[%clk 0:00:07]} 28. Rd7+ {[%clk 0:01:10.1]} 28... Kg6 {[%clk
0:00:06.2]} 29. Bd3+ {[%clk 0:01:09.6]} 29... f5 {[%clk 0:00:05.6]} 30. Re7
{[%clk 0:01:09.3]} 30... Be4 {[%clk 0:00:03.4]} 31. Rxe6+ {[%clk 0:01:08.5]}
31... Kf7 {[%clk 0:00:03.4]} 32. Bc4 {[%clk 0:00:54.6]} 1-0

[Event "Early-Titled-Tuesday-Blitz-October-03-2023"]
[Site "Chess.com"]
[Date "2023.10.03"]
[Round "11"]
[White "FairChess_on_YouTube"]
[Black "BardArtem"]
[Result "1-0"]
[WhiteElo "3047"]
[BlackElo "2787"]
[TimeControl "180+1"]
[EndTime "10:06:47 PDT"]
[Termination "FairChess_on_YouTube won on time"]

1. e4 {[%clk 0:03:00.9]} 1... e5 {[%clk 0:02:49.6]} 2. f4 {[%clk 0:02:59.9]}
2... d5 {[%clk 0:02:46.7]} 3. exd5 {[%clk 0:02:57.2]} 3... exf4 {[%clk
0:02:46.9]} 4. Nf3 {[%clk 0:02:54.7]} 4... Nf6 {[%clk 0:02:46.3]} 5. Bc4 {[%clk
0:02:54.6]} 5... c6 {[%clk 0:02:45.8]} 6. dxc6 {[%clk 0:02:47.8]} 6... Nxc6
{[%clk 0:02:46.7]} 7. d4 {[%clk 0:02:36.8]} 7... Bd6 {[%clk 0:02:43.9]} 8. Qe2+
{[%clk 0:02:36.3]} 8... Qe7 {[%clk 0:02:31.9]} 9. Qxe7+ {[%clk 0:02:34.1]} 9...
Kxe7 {[%clk 0:02:32.8]} 10. O-O {[%clk 0:02:25.6]} 10... Be6 {[%clk 0:02:24.2]}
11. Nbd2 {[%clk 0:02:14.8]} 11... Rac8 {[%clk 0:02:11.9]} 12. Bb3 {[%clk
0:02:08]} 12... Nb4 {[%clk 0:01:41]} 13. c3 {[%clk 0:02:01.6]} 13... Nd3 {[%clk
0:01:37.9]} 14. Bc2 {[%clk 0:01:48.5]} 14... Nxc1 {[%clk 0:01:33.8]} 15. Rfxc1
{[%clk 0:01:47.7]} 15... h6 {[%clk 0:01:33.8]} 16. Re1 {[%clk 0:01:44.4]} 16...
Rhe8 {[%clk 0:01:23.3]} 17. Ba4 {[%clk 0:01:43.4]} 17... Red8 {[%clk 0:01:20.2]}
18. Bb3 {[%clk 0:01:43.2]} 18... Kd7 {[%clk 0:01:13.2]} 19. Ne5+ {[%clk
0:01:34.3]} 19... Bxe5 {[%clk 0:01:06.1]} 20. Rxe5 {[%clk 0:01:35.2]} 20... Re8
{[%clk 0:00:51.5]} 21. Ba4+ {[%clk 0:01:34.7]} 21... Kd6 {[%clk 0:00:48.9]} 22.
Bxe8 {[%clk 0:01:34.2]} 22... Rxe8 {[%clk 0:00:49.8]} 23. Rae1 {[%clk
0:01:18.5]} 23... Rc8 {[%clk 0:00:40.9]} 24. c4 {[%clk 0:01:10.6]} 24... b6
{[%clk 0:00:26.8]} 25. d5 {[%clk 0:01:04.1]} 25... Bd7 {[%clk 0:00:21.5]} 26.
Re7 {[%clk 0:01:03.7]} 26... Re8 {[%clk 0:00:15.3]} 27. Rxe8 {[%clk 0:00:57.8]}
27... Nxe8 {[%clk 0:00:15.9]} 28. Ne4+ {[%clk 0:00:53.6]} 28... Kc7 {[%clk
0:00:16.2]} 29. b4 {[%clk 0:00:53.3]} 1-0

[Event "Early-Titled-Tuesday-Blitz-October-03-2023"]
[Site "Chess.com"]
[Date "2023.10.03"]
[Round "11"]
[White "MokshAD1603"]
[Black "MidnightFox"]
[Result "1-0"]
[WhiteElo "2600"]
[BlackElo "2480"]
[TimeControl "180+1"]
[EndTime "10:06:47 PDT"]
[Termination "MokshAD1603 won by resignation"]

1. e4 {[%clk 0:03:00.9]} 1... c5 {[%clk 0:02:59.1]} 2. Nf3 {[%clk 0:03:00.6]}
2... d6 {[%clk 0:02:58.3]} 3. Bb5+ {[%clk 0:02:59.9]} 3... Nd7 {[%clk
0:02:57.7]} 4. a4 {[%clk 0:02:59.2]} 4... Nf6 {[%clk 0:02:56.4]} 5. Nc3 {[%clk
0:02:59.8]} 5... e6 {[%clk 0:02:55.1]} 6. a5 {[%clk 0:02:57.2]} 6... a6 {[%clk
0:02:53.1]} 7. Be2 {[%clk 0:02:57.6]} 7... Be7 {[%clk 0:02:52.2]} 8. d4 {[%clk
0:02:58.1]} 8... cxd4 {[%clk 0:02:52.1]} 9. Qxd4 {[%clk 0:02:59]} 9... O-O
{[%clk 0:02:51.6]} 10. O-O {[%clk 0:02:58.7]} 10... b5 {[%clk 0:02:45.7]} 11.
axb6 {[%clk 0:02:56.7]} 11... Qxb6 {[%clk 0:02:45.6]} 12. Qxb6 {[%clk
0:02:51.6]} 12... Nxb6 {[%clk 0:02:42.3]} 13. Rd1 {[%clk 0:02:52.5]} 13... Bb7
{[%clk 0:02:38.4]} 14. Be3 {[%clk 0:02:48]} 14... Nbd7 {[%clk 0:02:31.6]} 15.
Nd2 {[%clk 0:02:48]} 15... Rfc8 {[%clk 0:02:25.6]} 16. Nc4 {[%clk 0:02:22.2]}
16... d5 {[%clk 0:01:51.8]} 17. Na5 {[%clk 0:02:20.5]} 17... Rc7 {[%clk
0:01:41.1]} 18. Nxb7 {[%clk 0:02:13.4]} 18... Rxb7 {[%clk 0:01:40.3]} 19. exd5
{[%clk 0:02:14.3]} 19... Nxd5 {[%clk 0:01:24.7]} 20. Nxd5 {[%clk 0:02:10.5]}
20... exd5 {[%clk 0:01:25.6]} 21. b3 {[%clk 0:02:11.2]} 21... Rc7 {[%clk
0:01:07.5]} 22. Rxd5 {[%clk 0:02:06.1]} 22... Nf6 {[%clk 0:01:04.7]} 23. Rdd1
{[%clk 0:01:52.4]} 23... Rxc2 {[%clk 0:01:01.3]} 24. Rxa6 {[%clk 0:01:52.4]}
24... Rxa6 {[%clk 0:00:57.4]} 25. Bxa6 {[%clk 0:01:53.3]} 25... Rb2 {[%clk
0:00:51.3]} 26. Bc4 {[%clk 0:01:50.7]} 26... g6 {[%clk 0:00:41.5]} 27. h3 {[%clk
0:01:37.2]} 27... h5 {[%clk 0:00:34.5]} 28. Ra1 {[%clk 0:01:33.6]} 28... Kg7
{[%clk 0:00:27]} 29. Bd4 {[%clk 0:01:33.3]} 29... Rd2 {[%clk 0:00:26.6]} 30. Bc3
{[%clk 0:01:32.8]} 30... Rc2 {[%clk 0:00:26.1]} 31. Be5 {[%clk 0:01:33.2]} 31...
Bc5 {[%clk 0:00:14.4]} 32. Rf1 {[%clk 0:01:17.1]} 32... g5 {[%clk 0:00:14]} 33.
g3 {[%clk 0:01:15]} 33... Rd2 {[%clk 0:00:12.6]} 34. Kg2 {[%clk 0:01:13.5]}
34... Kg6 {[%clk 0:00:12.8]} 35. Bc3 {[%clk 0:01:12.1]} 35... Ra2 {[%clk
0:00:09.8]} 36. b4 {[%clk 0:01:10.3]} 36... Ra3 {[%clk 0:00:06.9]} 37. Bxf6
{[%clk 0:01:09.1]} 1-0

[Event "Early-Titled-Tuesday-Blitz-October-03-2023"]
[Site "Chess.com"]
[Date "2023.10.03"]
[Round "11"]
[White "Roman_Ovetchkin"]
[Black "deribas12345"]
[Result "1-0"]
[WhiteElo "2709"]
[BlackElo "2585"]
[TimeControl "180+1"]
[EndTime "10:06:49 PDT"]
[Termination "Roman_Ovetchkin won by resignation"]

1. d4 {[%clk 0:02:51.4]} 1... Nf6 {[%clk 0:02:58.9]} 2. c4 {[%clk 0:02:51.1]}
2... d6 {[%clk 0:02:58.5]} 3. Nf3 {[%clk 0:02:50.3]} 3... Bf5 {[%clk 0:02:57]}
4. Nc3 {[%clk 0:02:48.5]} 4... g6 {[%clk 0:02:56.9]} 5. Qb3 {[%clk 0:02:45.6]}
5... Qc8 {[%clk 0:02:56.1]} 6. Nh4 {[%clk 0:02:43.3]} 6... Bd7 {[%clk
0:02:51.4]} 7. g3 {[%clk 0:02:39.2]} 7... Bg7 {[%clk 0:02:49.4]} 8. Bg2 {[%clk
0:02:39.3]} 8... c6 {[%clk 0:02:49.6]} 9. O-O {[%clk 0:02:36.3]} 9... e5 {[%clk
0:02:46]} 10. Nf3 {[%clk 0:02:31.6]} 10... exd4 {[%clk 0:02:27.5]} 11. Nxd4
{[%clk 0:02:30.8]} 11... O-O {[%clk 0:02:27.6]} 12. Rd1 {[%clk 0:02:30.1]} 12...
Na6 {[%clk 0:02:26]} 13. Qc2 {[%clk 0:02:29]} 13... d5 {[%clk 0:02:12.2]} 14.
cxd5 {[%clk 0:02:12.6]} 14... cxd5 {[%clk 0:02:04]} 15. Bf4 {[%clk 0:02:07]}
15... Bh3 {[%clk 0:01:54.6]} 16. Nxd5 {[%clk 0:01:54.1]} 16... Qxc2 {[%clk
0:01:44.8]} 17. Nxc2 {[%clk 0:01:53.1]} 17... Bxg2 {[%clk 0:01:42.8]} 18. Nxf6+
{[%clk 0:01:51.6]} 18... Bxf6 {[%clk 0:01:42.8]} 19. Kxg2 {[%clk 0:01:52.2]}
19... Rac8 {[%clk 0:01:37.5]} 20. Ne3 {[%clk 0:01:50]} 20... Nb4 {[%clk
0:01:23.7]} 21. Bd6 {[%clk 0:01:44.9]} 21... Nc2 {[%clk 0:01:16]} 22. Nxc2
{[%clk 0:01:42.5]} 22... Rxc2 {[%clk 0:01:16.9]} 23. Bxf8 {[%clk 0:01:41.7]}
23... Kxf8 {[%clk 0:01:17.8]} 24. e3 {[%clk 0:01:36.8]} 24... Rxb2 {[%clk
0:01:13.6]} 25. Rab1 {[%clk 0:01:33.3]} 25... Rxa2 {[%clk 0:01:07]} 26. Rxb7
{[%clk 0:01:32.7]} 26... Bg5 {[%clk 0:00:48.3]} 27. Kf3 {[%clk 0:01:22.1]} 27...
Ra6 {[%clk 0:00:40.6]} 28. h4 {[%clk 0:01:16.7]} 28... Bh6 {[%clk 0:00:37.2]}
29. Rd8+ {[%clk 0:01:13.8]} 29... Kg7 {[%clk 0:00:36.4]} 30. Ra8 {[%clk
0:01:11.7]} 30... Rf6+ {[%clk 0:00:33.9]} 31. Ke2 {[%clk 0:01:10]} 31... g5
{[%clk 0:00:34.1]} 32. hxg5 {[%clk 0:01:09.3]} 32... Bxg5 {[%clk 0:00:34.5]} 33.
Raxa7 {[%clk 0:01:09.5]} 33... h5 {[%clk 0:00:35.4]} 34. Rb5 {[%clk 0:01:07.6]}
34... Kg6 {[%clk 0:00:35.5]} 35. Raa5 {[%clk 0:01:06.9]} 35... Bh6 {[%clk
0:00:32.9]} 36. Rxh5 {[%clk 0:01:06.7]} 36... Re6 {[%clk 0:00:33.3]} 37. Rhd5
{[%clk 0:01:03.4]} 37... Rb6 {[%clk 0:00:32.8]} 38. Rab5 {[%clk 0:01:03.3]}
38... Rc6 {[%clk 0:00:32.5]} 39. f4 {[%clk 0:01:02.9]} 39... Bg7 {[%clk
0:00:32.2]} 40. g4 {[%clk 0:01:02.2]} 40... f6 {[%clk 0:00:32.1]} 41. g5 {[%clk
0:01:00.2]} 41... fxg5 {[%clk 0:00:31.1]} 42. Rxg5+ {[%clk 0:01:00.2]} 42... Kh7
{[%clk 0:00:30.4]} 43. Rb7 {[%clk 0:00:59.1]} 1-0

[Event "Early-Titled-Tuesday-Blitz-October-03-2023"]
[Site "Chess.com"]
[Date "2023.10.03"]
[Round "11"]
[White "ChessicallyInclined"]
[Black "JoseRemolar"]
[Result "1-0"]
[WhiteElo "2775"]
[BlackElo "2480"]
[TimeControl "180+1"]
[EndTime "10:06:50 PDT"]
[Termination "ChessicallyInclined won on time"]

1. e4 {[%clk 0:03:00.9]} 1... c5 {[%clk 0:03:00]} 2. Nf3 {[%clk 0:03:01]} 2...
d6 {[%clk 0:02:59.8]} 3. d4 {[%clk 0:03:01.6]} 3... cxd4 {[%clk 0:03:00.7]} 4.
Nxd4 {[%clk 0:03:02.5]} 4... Nf6 {[%clk 0:03:00.8]} 5. Nc3 {[%clk 0:03:03.1]}
5... a6 {[%clk 0:03:01.4]} 6. Be2 {[%clk 0:03:01.5]} 6... e5 {[%clk 0:03:00.4]}
7. Nb3 {[%clk 0:03:01.6]} 7... Be7 {[%clk 0:02:59.8]} 8. Be3 {[%clk 0:03:02.2]}
8... O-O {[%clk 0:02:57.2]} 9. g4 {[%clk 0:02:59.9]} 9... Be6 {[%clk 0:02:53.4]}
10. g5 {[%clk 0:02:59.3]} 10... Nfd7 {[%clk 0:02:54]} 11. Qd2 {[%clk 0:02:58.9]}
11... b5 {[%clk 0:02:51]} 12. O-O-O {[%clk 0:02:55.2]} 12... Nb6 {[%clk
0:02:49.7]} 13. f4 {[%clk 0:02:46.4]} 13... Nc4 {[%clk 0:02:18.2]} 14. Bxc4
{[%clk 0:02:46.1]} 14... bxc4 {[%clk 0:02:19.1]} 15. Na1 {[%clk 0:02:45.1]}
15... exf4 {[%clk 0:02:18.5]} 16. Bxf4 {[%clk 0:02:45.2]} 16... Nc6 {[%clk
0:02:17.7]} 17. Nd5 {[%clk 0:02:43.2]} 17... Bxd5 {[%clk 0:02:01.6]} 18. exd5
{[%clk 0:02:41.9]} 18... Ne5 {[%clk 0:01:57.6]} 19. h4 {[%clk 0:02:37.9]} 19...
Qb6 {[%clk 0:01:41]} 20. Bxe5 {[%clk 0:02:18.8]} 20... dxe5 {[%clk 0:01:41.9]}
21. c3 {[%clk 0:02:12.3]} 21... Rab8 {[%clk 0:01:16.6]} 22. Qe2 {[%clk
0:01:46.9]} 22... Rfd8 {[%clk 0:01:08.3]} 23. Rh2 {[%clk 0:01:40.1]} 23... Qa5
{[%clk 0:00:43.9]} 24. Qxc4 {[%clk 0:01:18.3]} 24... Rdc8 {[%clk 0:00:42]} 25.
Qe4 {[%clk 0:01:18]} 25... Rxc3+ {[%clk 0:00:30.3]} 26. Kb1 {[%clk 0:01:01.2]}
26... Rc5 {[%clk 0:00:05.1]} 27. d6 {[%clk 0:00:51.3]} 27... Bf8 {[%clk
0:00:03.2]} 28. Nb3 {[%clk 0:00:51]} 28... Rb4 {[%clk 0:00:01.7]} 29. Nxa5
{[%clk 0:00:45.7]} 29... Rxe4 {[%clk 0:00:01.7]} 30. d7 {[%clk 0:00:45.4]} 1-0

[Event "Early-Titled-Tuesday-Blitz-October-03-2023"]
[Site "Chess.com"]
[Date "2023.10.03"]
[Round "11"]
[White "Let_it_be_1"]
[Black "Juicy_Fork"]
[Result "1-0"]
[WhiteElo "2630"]
[BlackElo "2461"]
[TimeControl "180+1"]
[EndTime "10:06:52 PDT"]
[Termination "Let_it_be_1 won on time"]

1. e4 {[%clk 0:03:00.9]} 1... e5 {[%clk 0:02:58.2]} 2. Nf3 {[%clk 0:03:00.6]}
2... Nc6 {[%clk 0:02:56.3]} 3. Bb5 {[%clk 0:03:00.8]} 3... a6 {[%clk 0:02:55.1]}
4. Ba4 {[%clk 0:03:01.1]} 4... d6 {[%clk 0:02:55.6]} 5. c3 {[%clk 0:03:00.6]}
5... Bd7 {[%clk 0:02:54.7]} 6. d4 {[%clk 0:03:00.1]} 6... g6 {[%clk 0:02:55.2]}
7. O-O {[%clk 0:03:00]} 7... Bg7 {[%clk 0:02:55.7]} 8. dxe5 {[%clk 0:03:00.4]}
8... dxe5 {[%clk 0:02:53]} 9. Bg5 {[%clk 0:02:59.9]} 9... f6 {[%clk 0:02:52.4]}
10. Be3 {[%clk 0:02:59]} 10... Nh6 {[%clk 0:02:47.1]} 11. Bb3 {[%clk 0:02:56]}
11... Nf7 {[%clk 0:02:37.9]} 12. Nbd2 {[%clk 0:02:51.6]} 12... O-O {[%clk
0:02:33.8]} 13. Qe2 {[%clk 0:02:50.3]} 13... Qe7 {[%clk 0:02:27.8]} 14. Rfd1
{[%clk 0:02:48.4]} 14... Rad8 {[%clk 0:02:22.8]} 15. Bd5 {[%clk 0:02:45.3]}
15... Kh8 {[%clk 0:02:10.6]} 16. b4 {[%clk 0:02:44.9]} 16... Nd6 {[%clk
0:01:55.8]} 17. Nc4 {[%clk 0:02:32.9]} 17... Be6 {[%clk 0:01:28.9]} 18. Bc5
{[%clk 0:02:25.2]} 18... Bxd5 {[%clk 0:01:23.8]} 19. Rxd5 {[%clk 0:02:24.6]}
19... Qe6 {[%clk 0:01:22.1]} 20. Bxd6 {[%clk 0:01:59.9]} 20... cxd6 {[%clk
0:01:17.7]} 21. Rad1 {[%clk 0:01:59.8]} 21... b5 {[%clk 0:00:57.5]} 22. Nxd6
{[%clk 0:01:51.1]} 22... h5 {[%clk 0:00:38.6]} 23. Nb7 {[%clk 0:01:48.8]} 23...
Rb8 {[%clk 0:00:20.1]} 24. Nc5 {[%clk 0:01:47.8]} 24... Qc8 {[%clk 0:00:20]} 25.
Nd7 {[%clk 0:01:47.2]} 25... Rd8 {[%clk 0:00:17.4]} 26. Nxb8 {[%clk 0:01:46.1]}
26... Rxd5 {[%clk 0:00:11.3]} 27. Rxd5 {[%clk 0:01:44.5]} 27... Nxb8 {[%clk
0:00:11.5]} 28. Qd3 {[%clk 0:01:43.8]} 28... Kh7 {[%clk 0:00:08.9]} 29. h3
{[%clk 0:01:34.7]} 29... Nc6 {[%clk 0:00:08.2]} 30. Rd7 {[%clk 0:01:33.4]} 30...
a5 {[%clk 0:00:06.8]} 31. a3 {[%clk 0:01:33.1]} 31... axb4 {[%clk 0:00:06.3]}
32. axb4 {[%clk 0:01:33.5]} 32... Qa6 {[%clk 0:00:04.2]} 33. Kh2 {[%clk
0:01:24.9]} 33... Qa3 {[%clk 0:00:03.3]} 34. Qxb5 {[%clk 0:01:17.6]} 34... Qxc3
{[%clk 0:00:02.9]} 35. Rc7 {[%clk 0:01:17.5]} 35... Nd4 {[%clk 0:00:01.8]} 36.
Qd7 {[%clk 0:01:09.8]} 1-0